Workbook

Sheet Website
E2: Versienummer | F2: 1.0
B7: Premiecalculator
B12: Informatie
B13: Vul hieronder uw huidige gegevens in en zie direct hoe hoog de premie in de nieuwe pensioenregeling wordt.
B16: Uw gegevens (een toelichting op de vragen vindt u onderaan)
B17: 1. Heeft u een partner en is deze bekend bij SPF? | C17: nee
B18: 2. Neemt u deel aan de BasisPlus regeling | C18: nee
B19: 3. Heeft u premievrijstelling bij arbeidsongeschiktheid meeverzekerd? | C19: nee
B20: 4. Hoeveel extra premie betaalt u vrijwillig? | C20: 0
C21: =IF(AND(C23="geen",E23="geen"),"",IF(C23=E23,"De gekozen beroepsuitoefeningen zijn gelijk aan elkaar. Tel de verschillende inkomenscomponenten bij elkaar op en vul deze in bij beroepsuitoefening 1.","")) -> 
B22: Beroepsuitoefening | C22: Beroepsuitoefening 1 | E22: Beroepsuitoefening 2
B23: 5. Op welke wijze bent u werkzaam als fysiotherapeut? | C23: geen | E23: geen
B24: 6. Wat is uw bruto parttime jaarinkomen? | C24: 0 | E24: 0
B25: 7. Wat is uw parttimepercentage? | C25: 0 | E25: 0
B26: Nieuwe jaarpremie per beroepsuitoefening | C26: =rekenmodule!G17 -> 0 | E26: =rekenmodule!H17 -> 0
C27: =IF(AND(C23="geen",C24>0),"Vul uw beroepsuitoefening 1 in","") ->  | E27: =IF(AND(E23="geen",E24>0),"Vul uw beroepsuitoefening 2 in","") -> 
B28: Uw jaarpremie | C28: Premie oud | D28: Premie nieuw | E28: Verschil
B29: Premie | C29: =rekenmodule!B19 -> 0 | D29: =SUM(rekenmodule!G17:H17) -> 0 | E29: =D29-C29 -> 0
B30: Extra bijsparen | C30: =rekenmodule!B20 -> 0 | D30: =SUM(rekenmodule!G18:H18) -> 0 | E30: =D30-C30 -> 0
B31: Premie voor premievrijstelling bij arbeidsongeschiktheid | C31: =rekenmodule!B21 -> 0 | D31: =SUM(rekenmodule!G19:H19) -> 0 | E31: =D31-C31 -> 0
B32: Totaal | C32: =rekenmodule!B22 -> 0 | D32: =SUM(rekenmodule!G20:H20) -> 0 | E32: =D32-C32 -> 0
C33: =IF(AND(E29>60,C25+E25>100%),"Uw premie gaat omhoog. U bouwt meer pensioenkapitaal op. Is dit ongewenst? Neem dan contact met ons op.","") -> 
B34: Toelichting bij vragen
B35: 1. Heeft u een partner en is deze bekend bij SPF? | C35: Bent u gehuwd, heeft u een geregistreerd partnerschap of woont u samen met uw partner en is uw partner aangemeld? Dit kunt u terugvinden op uw nota of UPO.
B36: 2. Neemt u deel aan de BasisPlus regeling | C36: De BasisPlus regeling was alleen beschikbaar voor deelnemers die voor 2016 zijn gestart. Geef aan of u deelneemt aan deze regeling. Dit kunt u terugvinden op uw nota.
B37: 3. Heeft u premievrijstelling bij arbeidsongeschiktheid meeverzekerd? | C37: Controleer of u deze verzekering heeft. Dit kunt u terugvinden op uw nota.
B38: 4. Hoeveel extra premie betaalt u vrijwillig? | C38: U heeft de mogelijkheid om een extra pensioen op te bouwen. Hier vult u het percentage (11%, 22% of 33%) in dat u nu bovenop uw standaardpremie betaalt. Dit kunt u terugvinden op uw nota.
B39: 5. Op welke wijze bent u werkzaam als fysiotherapeut? | C39: Werkt u in loondienst, als zelfstandige of als directeur-grootaandeelhouder (DGA)?
B40: 6. Wat is uw bruto parttime jaarinkomen? | C40: Hier wordt gevraagd naar uw totale inkomen dat u verdient met uw werk als fysiotherapeut. Als u meerdere werkgevers heeft, tel dan de inkomens per beroepsuitoefening bij elkaar op om tot een totaalbedrag te komen.
B41: 7. Wat is uw parttimepercentage? | C41: Uw parttimepercentage geeft aan hoeveel u werkt ten opzichte van een fulltime werkweek. Het is belangrijk voor de berekening van uw pensioenopbouw en de premie die u betaalt
B43: Disclaimer
B44: Deze informatie wordt onder alle voorbehoud verstrekt. U kunt aan deze informatie op geen enkele wijze rechten ontlenen. Stichting Pensioenfonds voor Fysiotherapeuten is derhalve niet aansprakelijk voor (de gevolgen van) eventuele fouten of onvolledigheden in deze informatie.

Sheet rekenmodule (hidden)
A2: OUD | D2: toelichting velden voor bouw | F2: NIEUW | J2: toelichting velden voor bouw
A3: Jaar | B3: =G3 -> 2025 | D3: overnemen van G3 | F3: Jaar | G3: 2025 | J3: jaar van berekening (default huidige jaar, ook niet mogelijk om aan te passen naar eerder jaar)
A4: Beroepsuitoefening | B4: =IF(G10>H10,G9,H9) -> geen | D4: overnemen van G9 of H9, waarbij de beroepsuitoefening overgenomen wordt die het hoogste beroepsinkomen heeft in G10 en H10 | F4: Partner | G4: =Website!C17 -> nee | J4: wel of geen partner (keuze ja of nee geldt automatisch voor alle beroepsuitoefeningen)
A5: Partner | B5: =G4 -> nee | D5: overnemen van G4 | F5: Basis+ | G5: =Website!C18 -> nee | J5: wel of geen BasisPlus (keuze ja of nee geldt automatisch voor alle beroepsuitoefeningen)
A6: Basis+ | B6: =G5 -> nee | D6: overnemen van G5 | F6: PVI | G6: =Website!C19 -> nee | J6: wel of geen PVI meeverzekeren (keuze ja of nee geldt automatisch voor alle beroepsuitoefeningen)
A7: PVI | B7: =G6 -> nee | D7: overnemen van G6 | F7: Bijsparen (oude regeling) | G7: =Website!C20 -> 0
A8: Beroepsinkomen | B8: =G10+H10 -> 0 | D8: totaal van G10 en H10 | G8: Beroepsuitoefening 1 | H8: Beroepsuitoefening 2
A9: DT% | B9: =MIN((G11+H11),1) -> 0 | D9: totaal van G11 en H11, gemaximeerd op 100% | F9: Beroepsuitoefening | G9: =Website!C23 -> geen | H9: =Website!E23 -> geen | J9: beroepsuitoefening
A10: Max. | B10: =IF(B4="loondienst",VLOOKUP(B3,SPF!$A:$D,2,),VLOOKUP(B3,SPF!$A:$D,3,0)) -> 47209 | D10: reglementair maximum pensioengevend inkomen afhankelijk van beroepsuitoefening in B4 | F10: Beroepsinkomen | G10: =IF(G9="geen",0,MAX(Website!C24,0)) -> 0 | H10: =IF(H9="geen",0,MAX(Website!E24,0)) -> 0 | J10: parttime inkomen op jaarbasis
A11: Beroepsinkomen | B11: =IF(B8<B10,B8,B10) -> 0 | D11: het beroepsinkomen waarmee gerekend wordt (het laagste bedrag van B8 en B10) | F11: Gewerkte DT% | G11: =IF(G9="geen",0,MIN(Website!C25,1)) -> 0 | H11: =IF(H9="geen",0,MIN(Website!E25,1)) -> 0 | J11: deeltijdpercentage
A12: Franchise | B12: =VLOOKUP(B3,SPF!$A:$D,4,0) -> 14752 | D12: franchise | F12: max inkomen | G12: =IF(G9="loondienst",VLOOKUP(G3,SPF!$A:$D,2,),VLOOKUP(G3,SPF!$A:$D,3,0)) -> 47209 | H12: =IF(H9="loondienst",VLOOKUP(G3,SPF!$A:$D,2,),VLOOKUP(G3,SPF!$A:$D,3,0)) -> 47209 | J12: reglementair maximum pensioengevend inkomen
A13: PT Franchise | B13: =B12*B9 -> 0 | D13: franchise B12 * deeltijdpercentage B9 | F13: Fulltime pensioengevend inkomen | G13: =IF(G11=0,0.0000001,IF(G10<=0,0,IF(G11>1,MIN(G12,G10),MIN(G12,G10/G11)))) -> 1e-07 | H13: =IF(H11=0,0.0000001,IF(H10<=0,0,IF(H11>1,MIN(H12,H10),MIN(H12,H10/H11)))) -> 1e-07 | J13: inkomen omgerekend naar fulltime basis (H10 gedeeld door H11 maar maximaal het reglementair maximum pensioengevend inkomen in H12), mag geen negatief bedrag zijn, DT% is maximaal 100%
A14: Fiscaal max. PG | B14: =IF(B3>2014,VLOOKUP(B3,Overig!I:L,4,0),"NVT") -> 119325 | D14: de fiscale maximale pensioengrondslag van het huidige jaar | F14: Franchise | G14: =VLOOKUP(G3,SPF!$A:$D,4,0) -> 14752 | H14: =VLOOKUP(G3,SPF!$A:$D,4,0) -> 14752 | J14: vastgesteld fulltime franchise
A15: Fiscaal max. DT PG | B15: =IF(B3>2014,B14*B9,"NVT") -> 0 | D15: de fiscale maximale pensioengrondslag B14 * deeltijdpercentage B9 | F15: Pensioengrondslag | G15: =IF(G11>1,G13-G14,IF((G13-G14)*G11<0,0,(G13-G14)*G11)) -> 0 | H15: =IF(H11>1,H13-H14,IF((H13-H14)*H11<0,0,(H13-H14)*H11)) -> 0 | J15: fulltime pensioengevend inkomen (H13) -/- fulltime franchise (H14) * deeltijdpercentage (H11) (DT% is maxomaal 100%)
A16: Berekende PG | B16: =IF(B11-B13<1,0,IF(B11-B13>B10-B12,B10-B12,B11-B13)) -> 0 | D16: beroepsinkomen B11 -/- deeltijdfranchise B13 (mmaar mag niet groter zijn dan max beroepsinkomen B10 -/- franchise B12) | F16: premiepercentage | G16: =IF(G9="loondienst",VLOOKUP(G26,SPF!$O:$P,2,0),VLOOKUP(G26,SPF!$S:$T,2,0)) -> 0.1093 | H16: =IF(H9="loondienst",VLOOKUP(H26,SPF!$O:$P,2,0),VLOOKUP(H26,SPF!$S:$T,2,0)) -> 0.1093 | J16: premiepercentage obv beroepsuitoefening /wel of geen partner / wel of geen BasisPlus
A17: Pensioengrondslag | B17: =IF(B15<B16,B15,B16) -> 0 | D17: de pensioengrondslag waarmee gerekend wordt (het laagste bedrag van B15 en B16 | F17: Premie per beroepsuitoefening | G17: =G15*G16 -> 0 | H17: =IF(H11=0,0,H15*H16) -> 0 | J17: pensioengrondslag (H15) * premiepercentage (H16)
A18: Premiepercentage | B18: =IF(B4="loondienst",VLOOKUP(B23,SPF!$G:$H,2,0),VLOOKUP(B23,SPF!$K:$L,2,0)) -> 0.1121 | D18: premiepercentage obv beroepsuitoefening /wel of geen partner / wel of geen BasisPlus | F18: Bijsparen | G18: =G25 -> 0 | H18: =H25 -> 0 | J18: Bijspaar premie uit H25
A19: Premie | B19: =ROUND(B17*B18,2) -> 0 | D19: pensioengrondslag (B17) * premiepercentage (B18) | F19: PVI | G19: =IF(G6="ja",(G17+G18)*0.0375,0) -> 0 | H19: =IF(G6="ja",(H17+H18)*0.0375,0) -> 0 | J19: (premie H17 + bijspaarpremie H18) * 3,75% opslag PVI
A20: bijsparen | B20: =B19*G7 -> 0 | D20: premie B19 * bijspaarpercentage (oude regeling) G7 | F20: Totale premie per beroepsuitoefening | G20: =SUM(G17:G19) -> 0 | H20: =SUM(H17:H19) -> 0 | J20: Premie H17 + bijspaarpremie H18 + opslag PVI H19
A21: PVI | B21: =IF(B7="ja",ROUND((B19+B20)*0.0375,2),0) -> 0 | D21: (premie B19 + bijspaar premie B20) * 3,75% opslag PVI | F21: PREMIE TOTAAL NIEUW | G21: =SUM(G20:H20) -> 0 | J21: Totale premie G20 + H21
A22: PREMIE TOTAAL OUD | B22: =SUM(B19:B21) -> 0 | D22: Premie B19 + bijspaarpremie B20 + opslag PVI B21 | F22: Bijsparen
A23: zoeksleutel (tbv werkblad SPF) | B23: =CONCATENATE(B3,B5,B6) -> 2025neenee | F23: maximaal bij te sparen | G23: =IF(G9="geen",0,VLOOKUP(G27,bijsparen!$A$3:$M$14,13,0)) -> 0 | H23: =IF(H9="geen",0,VLOOKUP(H27,bijsparen!$A$3:$M$14,13,0)) -> 0 | J23: maximaal bijspaar percentage met zoeksleutel bijsparen opgehaald uit tabblad 'bijsparen'
F24: bijsparen obv keuze oude regeling | G24: =ROUND(G23*VLOOKUP(G7,Overig!$O$1:$P$4,2,0),5) -> 0 | H24: =ROUND(H23*VLOOKUP(G7,Overig!$O$1:$P$4,2,0),5) -> 0 | J24: maximaal bijspaar percentage afgezet tegen oude bijspaar percentage (33% = 100%, 22% = 66,6%, 11%= 33,3%)
F25: Bijspaarpremie | G25: =IF(G9="geen",0,(G15*G24)*(1+VLOOKUP(G27,bijsparen!$A$3:$N$14,14,0))) -> 0 | H25: =IF(H9="geen",0,(H15*H24)*(1+VLOOKUP(H27,bijsparen!$A$3:$N$14,14,0))) -> 0 | J25: bijspaar percentage * pensioengrondslag * 'opslag bijsparen 'tabblad bijsparen' kolom N
F26: zoeksleutel (tbv werkblad SPF) | G26: =CONCATENATE(G3,G4,G5) -> 2025neenee | H26: =CONCATENATE(G3,G4,G5) -> 2025neenee
F27: zoeksleutel (tbv werkblad bijsparen | G27: =CONCATENATE(G9,G4,G5) -> geenneenee | H27: =CONCATENATE(H9,G4,G5) -> geenneenee

Sheet bijsparen (hidden)
A1: sleutel=partner/basis+ | G1: Pensioenpremie | H1: % van PG | I1: % van storting | J1: % van storting | K1: % van storting | L1: % van PG
C2: Partner | D2: Regeling | E2: Max PGS | F2: Franchise | G2: totaal | H2: spaarpremie | I2: toekomstige uitvoering | J2: MVEV | K2: uitvoering opbouw | L2: PP | M2: max bijsparen | N2: Opslagen bijsparen
A3: loondienstneenee | B3: DVB | C3: Nee | D3: Basis | E3: 38055 | F3: 14752 | G3: 0.1558 | H3: 0.1425 | I3: 0 | J3: 0 | K3: 0.093 | L3: 0 | M3: =ROUND(MIN(H3/3,0.3-H3),5) -> 0.0475 | N3: =SUM(I3:K3) -> 0.093
A4: loondienstjanee | B4: DVB | C4: Ja | D4: Basis | E4: 38055 | F4: 14752 | G4: 0.1601 | H4: 0.1425 | I4: 0 | J4: 0 | K4: 0.093 | L4: 0.0043 | M4: =ROUND(MIN(H4/3,0.3-H4),5) -> 0.0475 | N4: =SUM(I4:K4) -> 0.093
A5: loondienstneeja | B5: DVB | C5: Nee | D5: Basis Plus | E5: 38055 | F5: 14752 | G5: 0.2705 | H5: 0.2475 | I5: 0 | J5: 0 | K5: 0.093 | L5: 0 | M5: 0.0525 | N5: =SUM(I5:K5) -> 0.093
A6: loondienstjaja | B6: DVB | C6: Ja | D6: Basis Plus | E6: 38055 | F6: 14752 | G6: 0.2804 | H6: 0.2475 | I6: 0 | J6: 0 | K6: 0.093 | L6: 0.0099 | M6: =ROUND(MIN(H6/3,0.3-H6),5) -> 0.0525 | N6: 0.093
A7: zelfstandigneenee | B7: Zelfstandige | C7: Nee | D7: Basis | E7: 47209 | F7: 14752 | G7: 0.1093 | H7: 0.1 | I7: 0 | J7: 0 | K7: 0.093 | L7: 0 | M7: 0.03333 | N7: 0.093
A8: zelfstandigjanee | B8: Zelfstandige | C8: Ja | D8: Basis | E8: 47209 | F8: 14752 | G8: 0.1166 | H8: 0.1 | I8: 0 | J8: 0 | K8: 0.093 | L8: 0.0073 | M8: 0.03333 | N8: 0.093
A9: zelfstandigneeja | B9: Zelfstandige | C9: Nee | D9: Basis Plus | E9: 47209 | F9: 14752 | G9: 0.1858 | H9: 0.17 | I9: 0 | J9: 0 | K9: 0.093 | L9: 0 | M9: 0.05667 | N9: 0.093
A10: zelfstandigjaja | B10: Zelfstandige | C10: Ja | D10: Basis Plus | E10: 47209 | F10: 14752 | G10: 0.2014 | H10: 0.17 | I10: 0 | J10: 0 | K10: 0.093 | L10: 0.0156 | M10: 0.05667 | N10: 0.093
A11: DGAneenee | B11: Zelfstandige | C11: Nee | D11: Basis | E11: 47209 | F11: 14752 | G11: 0.1093 | H11: 0.1 | I11: 0 | J11: 0 | K11: 0.093 | L11: 0 | M11: 0.03333 | N11: 0.093
A12: DGAjanee | B12: Zelfstandige | C12: Ja | D12: Basis | E12: 47209 | F12: 14752 | G12: 0.1166 | H12: 0.1 | I12: 0 | J12: 0 | K12: 0.093 | L12: 0.0073 | M12: 0.03333 | N12: 0.093
A13: DGAneeja | B13: Zelfstandige | C13: Nee | D13: Basis Plus | E13: 47209 | F13: 14752 | G13: 0.1858 | H13: 0.17 | I13: 0 | J13: 0 | K13: 0.093 | L13: 0 | M13: 0.05667 | N13: 0.093
A14: DGAjaja | B14: Zelfstandige | C14: Ja | D14: Basis Plus | E14: 47209 | F14: 14752 | G14: 0.2014 | H14: 0.17 | I14: 0 | J14: 0 | K14: 0.093 | L14: 0.0156 | M14: 0.05667 | N14: 0.093
E15: 2025 | F15: 2025 | G15: 2025-07-01 | H15: 2025-07-01 | I15: zit in kostenopslag 9,3% | J15: zit in kostenopslag 9,3% | K15: 2025-07-01 | L15: 2025-07-01 | M15: doorrekening | N15: 2025-07-01
A17: Vastgestelde precentages per 01-07-2025
B18: % van | C18: Zelfstandig basis | D18: Zelfstandig basis+ | E18: Loondienst basis | F18: Loondienst basis+
A19: Spaarpremie | B19: Pensioengrondslag | C19: 0.1 | D19: 0.17 | E19: 0.1425 | F19: 0.2475 | J19: =
A20: Risicopremie | B20: Pensioengrondslag | C20: 0.0073 | D20: 0.0156 | E20: 0.0043 | F20: 0.0099
A21: MVEV | B21: Spaarpremie | C21: 0 | D21: 0 | E21: 0 | F21: 0
A22: Kostenopslag | B22: Spaarpremie | C22: 0.093 | D22: 0.093 | E22: 0.093 | F22: 0.093
B24: Spaarpremie | C24: =C19 -> 0.1 | D24: =D19 -> 0.17 | E24: 0.1425 | F24: 0.2475
B25: kostenopslag vd spaarpremie | C25: =ROUND(C22*C19,4) -> 0.0093 | D25: =ROUND(D22*D19,4) -> 0.0158 | E25: 0.0133 | F25: 0.023
B26: Premie zonder partner | C26: =C25+C19 -> 0.1093 | D26: =D25+D19 -> 0.1858 | E26: =E25+E19 -> 0.1558 | F26: =F25+F19 -> 0.2705
B27: risicopremie | C27: =C20 -> 0.0073 | D27: =D20 -> 0.0156 | E27: 0.0043 | F27: 0.0099
B28: Premie met partner | C28: =C19+C20+C25 -> 0.1166 | D28: =D19+D20+D25 -> 0.2014 | E28: =E19+E20+E25 -> 0.1601 | F28: =F19+F20+F25 -> 0.2804

Sheet Overig (hidden)
A1: ja | C1: 2007 | E1: 1 | G1: loondienst | I1: jaar | J1: Fiscale maximum | K1: Franchise | L1: pensioengrondslag | O1: 0 | P1: =ROUND(O1/O4,5) -> 0
A2: nee | C2: 2008 | E2: 2 | G2: zelfstandig | I2: 2015 | J2: 100000 | K2: 12642 | L2: =J2-K2 -> 87358 | O2: 0.11 | P2: =ROUND(O2/O4,5) -> 0.33333
C3: 2009 | E3: 3 | G3: DGA | I3: 2016 | J3: 101519 | K3: 12953 | L3: =J3-K3 -> 88566 | O3: 0.22 | P3: =ROUND(O3/O4,5) -> 0.66667
C4: 2010 | E4: 4 | G4: geen | I4: 2017 | J4: 103317 | K4: 13123 | L4: 90194 | O4: 0.33 | P4: =ROUND(O4/O4,5) -> 1
C5: 2011 | E5: 5 | I5: 2018 | J5: 105075 | K5: 13344 | L5: 91731
C6: 2012 | I6: 2019 | J6: 107593 | K6: 13785 | L6: =J6-K6 -> 93808 | P6: Afronden op 3 decimalen
C7: 2013 | I7: 2020 | J7: 110111 | K7: 14167 | L7: =J7-K7 -> 95944
C8: 2014 | I8: 2021 | J8: 112189 | K8: 14544 | L8: =J8-K8 -> 97645
C9: 2015 | I9: 2022 | J9: 114866 | K9: 14802 | L9: =J9-K9 -> 100064
C10: 2016 | I10: 2023 | J10: 128810 | K10: =J10-L10 -> 16322 | L10: 112488
C11: 2017 | I11: 2024 | J11: 137800 | K11: 17545 | L11: 120255
C12: 2018 | I12: 2025 | J12: 137800 | K12: 18475 | L12: 119325
C13: 2019
C14: 2020
C15: 2021
C16: 2022
C17: 2023
C18: 2024
C19: 2025

Sheet SPF (hidden)
A1: maximum beroepsinkomen en franchise | F1: Premiepercentage | N1: Premiepercentage 01-07-2025
A2: Jaar | B2: loondienst | C2: zelfstandig | D2: franchise | F2: Loondienst | J2: Zelfstandige | N2: Loondienst | R2: Zelfstandige
A3: 2008 | B3: 35200 | C3: 44200 | D3: 12288 | F3: jaar | G3: sleutel | H3: premie% | J3: jaar | K3: sleutel | L3: premie% | N3: jaar | O3: sleutel | P3: premie% | R3: jaar | S3: sleutel | T3: premie% | W3: sleutel = jaar/partner/basis+
A4: 2009 | B4: 35622 | C4: 44730 | D4: 12435 | F4: 2008 | G4: 2008jaja | H4: 0.1392 | J4: 2008 | K4: 2008jaja | L4: 0.0999 | N4: 2025-07-01 | O4: 2025jaja | P4: 0.2804 | R4: 2025-07-01 | S4: 2025jaja | T4: 0.2014
A5: 2010 | B5: 35800 | C5: 44954 | D5: 12497 | G5: 2008janee | H5: 0.1392 | K5: 2008janee | L5: 0.0999 | O5: 2025janee | P5: 0.1601 | S5: 2025janee | T5: 0.1166 | W5: Vastgestelde precentages per 01-07-2025
A6: 2011 | B6: 35800 | C6: 44954 | D6: 12497 | G6: 2008neeja | H6: 0.1311 | K6: 2008neeja | L6: 0.0941 | O6: 2025neeja | P6: 0.2705 | S6: 2025neeja | T6: 0.1858 | X6: % van | Y6: Zelfstandig basis | Z6: Zelfstandig basis+ | AA6: Loondienst basis | AB6: Loondienst basis+
A7: 2012 | B7: 35800 | C7: 44954 | D7: 12497 | G7: 2008neenee | H7: 0.1311 | K7: 2008neenee | L7: 0.0941 | O7: 2025neenee | P7: 0.1558 | S7: 2025neenee | T7: 0.1093 | W7: Spaarpremie | X7: Pensioengrondslag | Y7: 0.1 | Z7: 0.17 | AA7: 0.1425 | AB7: 0.2475
A8: 2013 | B8: 35800 | C8: 44954 | D8: 12497 | F8: 2009 | G8: 2009jaja | H8: 0.1407 | J8: 2009 | K8: 2009jaja | L8: 0.1011 | W8: Risicopremie | X8: Pensioengrondslag | Y8: 0.0073 | Z8: 0.0156 | AA8: 0.0043 | AB8: 0.0099
A9: 2014 | B9: 35800 | C9: 44954 | D9: 12497 | G9: 2009janee | H9: 0.1407 | K9: 2009janee | L9: 0.1011 | W9: MVEV | X9: Spaarpremie | Y9: 0 | Z9: 0 | AA9: 0 | AB9: 0
A10: 2015 | B10: 35800 | C10: 44954 | D10: 12497 | G10: 2009neeja | H10: 0.1335 | K10: 2009neeja | L10: 0.0959 | W10: Kostenopslag | X10: Spaarpremie | Y10: 0.093 | Z10: 0.093 | AA10: 0.093 | AB10: 0.093
A11: 2016 | B11: 35800 | C11: 44954 | D11: 12497 | G11: 2009neenee | H11: 0.1335 | K11: 2009neenee | L11: 0.0959
A12: 2017 | B12: 35800 | C12: 44954 | D12: 12497 | F12: 2010 | G12: 2010jaja | H12: 0.1407 | J12: 2010 | K12: 2010jaja | L12: 0.1011 | X12: Spaarpremie | Y12: =Y7 -> 0.1 | Z12: =Z7 -> 0.17 | AA12: 0.1425 | AB12: 0.2475
A13: 2018 | B13: 35800 | C13: 44954 | D13: 12497 | G13: 2010janee | H13: 0.1407 | K13: 2010janee | L13: 0.1011 | X13: kostenopslag v/d spaarpremie | Y13: =ROUND(Y10*Y7,4) -> 0.0093 | Z13: =ROUND(Z10*Z7,4) -> 0.0158 | AA13: =ROUND(AA10*AA7,4) -> 0.0133 | AB13: =ROUND(AB10*AB7,4) -> 0.023 | AC13: Afronden?
A14: 2019 | B14: 35800 | C14: 44954 | D14: 12497 | G14: 2010neeja | H14: 0.1335 | K14: 2010neeja | L14: 0.0959 | X14: Premie zonder partner | Y14: =Y13+Y7 -> 0.1093 | Z14: =Z13+Z7 -> 0.1858 | AA14: =AA13+AA7 -> 0.1558 | AB14: =AB13+AB7 -> 0.2705
A15: 2020 | B15: 35800 | C15: 44954 | D15: 12497 | G15: 2010neenee | H15: 0.1335 | K15: 2010neenee | L15: 0.0959 | X15: risicopremie v/d grondslag | Y15: =Y8 -> 0.0073 | Z15: =Z8 -> 0.0156 | AA15: 0.0043 | AB15: 0.0099
A16: 2021 | B16: 35800 | C16: 44954 | D16: 12497 | F16: 2011 | G16: 2011jaja | H16: 0.2468 | J16: 2011 | K16: 2011jaja | L16: 0.1775 | X16: Premie met partner | Y16: =Y7+Y8+Y13 -> 0.1166 | Z16: =Z7+Z8+Z13 -> 0.2014 | AA16: =AA7+AA8+AA13 -> 0.1601 | AB16: =AB7+AB8+AB13 -> 0.2804
A17: 2022 | B17: 35800 | C17: 44954 | D17: 12497 | G17: 2011janee | H17: 0.1407 | K17: 2011janee | L17: 0.1011
A18: 2023 | B18: 35800 | C18: 44954 | D18: 12497 | G18: 2011neeja | H18: 0.2342 | K18: 2011neeja | L18: 0.1684
A19: 2024 | B19: 35800 | C19: 44954 | D19: 12497 | G19: 2011neenee | H19: 0.1335 | K19: 2011neenee | L19: 0.0959
A20: 2025 | B20: 38055 | C20: 47209 | D20: 14752 | F20: 2012 | G20: 2012jaja | H20: 0.2481 | J20: 2012 | K20: 2012jaja | L20: 0.1781
G21: 2012janee | H21: 0.1413 | K21: 2012janee | L21: 0.1014
G22: 2012neeja | H22: 0.2421 | K22: 2012neeja | L22: 0.1738
G23: 2012neenee | H23: 0.1379 | K23: 2012neenee | L23: 0.099
F24: 2013 | G24: 2013jaja | H24: 0.2607 | J24: 2013 | K24: 2013jaja | L24: 0.1872
G25: 2013janee | H25: 0.1485 | K25: 2013janee | L25: 0.1066
G26: 2013neeja | H26: 0.2561 | K26: 2013neeja | L26: 0.1839
G27: 2013neenee | H27: 0.1459 | K27: 2013neenee | L27: 0.1047
F28: 2014 | G28: 2014jaja | H28: 0.2606 | J28: 2014 | K28: 2014jaja | L28: 0.1871
G29: 2014janee | H29: 0.1484 | K29: 2014janee | L29: 0.1065
G30: 2014neeja | H30: 0.2562 | K30: 2014neeja | L30: 0.1839
G31: 2014neenee | H31: 0.1459 | K31: 2014neenee | L31: 0.1047
F32: 2015 | G32: 2015jaja | H32: 0.2497 | J32: 2015 | K32: 2015jaja | L32: 0.1793
G33: 2015janee | H33: 0.1422 | K33: 2015janee | L33: 0.1021
G34: 2015neeja | H34: 0.2432 | K34: 2015neeja | L34: 0.1746
G35: 2015neenee | H35: 0.1385 | K35: 2015neenee | L35: 0.0994
F36: 2016 | G36: 2016jaja | H36: 0.2517 | J36: 2016 | K36: 2016jaja | L36: 0.1807
G37: 2016janee | H37: 0.1433 | K37: 2016janee | L37: 0.1029
G38: 2016neeja | H38: 0.2453 | K38: 2016neeja | L38: 0.1761
G39: 2016neenee | H39: 0.1397 | K39: 2016neenee | L39: 0.1003
F40: 2017 | G40: 2017jaja | H40: 0.2526 | J40: 2017 | K40: 2017jaja | L40: 0.1817
G41: 2017janee | H41: 0.1439 | K41: 2017janee | L41: 0.1035
G42: 2017neeja | H42: 0.2471 | K42: 2017neeja | L42: 0.1777
G43: 2017neenee | H43: 0.1407 | K43: 2017neenee | L43: 0.1012
F44: 2018 | G44: 2018jaja | H44: 0.2493 | J44: 2018 | K44: 2018jaja | L44: 0.1793
G45: 2018janee | H45: 0.142 | K45: 2018janee | L45: 0.1021
G46: 2018neeja | H46: 0.2441 | K46: 2018neeja | L46: 0.1755
G47: 2018neenee | H47: 0.139 | K47: 2018neenee | L47: 0.1
F48: 2019 | G48: 2019jaja | H48: 0.2462 | J48: 2019 | K48: 2019jaja | L48: 0.1771
G49: 2019janee | H49: 0.1402 | K49: 2019janee | L49: 0.1008
G50: 2019neeja | H50: 0.2409 | K50: 2019neeja | L50: 0.1733
G51: 2019neenee | H51: 0.1372 | K51: 2019neenee | L51: 0.0987
F52: 2020 | G52: 2020jaja | H52: 0.2462 | J52: 2020 | K52: 2020jaja | L52: 0.1771
G53: 2020janee | H53: 0.1402 | K53: 2020janee | L53: 0.1008
G54: 2020neeja | H54: 0.2409 | K54: 2020neeja | L54: 0.1733
G55: 2020neenee | H55: 0.1372 | K55: 2020neenee | L55: 0.0987
F56: 2021 | G56: 2021jaja | H56: 0.2712 | J56: 2021 | K56: 2021jaja | L56: 0.1951
G57: 2021janee | H57: 0.1544 | K57: 2021janee | L57: 0.1111
G58: 2021neeja | H58: 0.2659 | K58: 2021neeja | L58: 0.1913
G59: 2021neenee | H59: 0.1514 | K59: 2021neenee | L59: 0.1089
F60: 2022 | G60: 2022jaja | H60: 0.2728 | J60: 2022 | K60: 2022jaja | L60: 0.1962
G61: 2022janee | H61: 0.1553 | K61: 2022janee | L61: 0.1117
G62: 2022neeja | H62: 0.2676 | K62: 2022neeja | L62: 0.1925
G63: 2022neenee | H63: 0.1524 | K63: 2022neenee | L63: 0.1096
F64: 2023 | G64: 2023jaja | H64: 0.2752 | J64: 2023 | K64: 2023jaja | L64: 0.198
G65: 2023janee | H65: 0.1567 | K65: 2023janee | L65: 0.1127
G66: 2023neeja | H66: 0.2702 | K66: 2023neeja | L66: 0.1943
G67: 2023neenee | H67: 0.1539 | K67: 2023neenee | L67: 0.1107
F68: 2024 | G68: 2024jaja | H68: 0.2767 | J68: 2024 | K68: 2024jaja | L68: 0.199
G69: 2024janee | H69: 0.1576 | K69: 2024janee | L69: 0.1133
G70: 2024neeja | H70: 0.2717 | K70: 2024neeja | L70: 0.1954
G71: 2024neenee | H71: 0.1547 | K71: 2024neenee | L71: 0.1113
F72: 2025 | G72: 2025jaja | H72: 0.2783 | J72: 2025 | K72: 2025jaja | L72: 0.2001
G73: 2025janee | H73: 0.1585 | K73: 2025janee | L73: 0.114
G74: 2025neeja | H74: 0.27363 | K74: 2025neeja | L74: 0.1968
G75: 2025neenee | H75: 0.1558 | K75: 2025neenee | L75: 0.1121
